[Event "December 19 Early 2023"]
[Site "https://www.chess.com"]
[Date "2023.12.19"]
[Round "3"]
[White "Le, Tuan Minh"]
[Black "Vigoa Apecheche, Yanira"]
[Result "1-0"]
[Board "56"]
[TimeControl "180+1"]
[WhiteFideId "12401153"]
[BlackFideId "3507041"]
[WhiteElo "2561"]
[BlackElo "2276"]
[WhiteTeam "VIE"]
[BlackTeam "USA"]
[WhiteClock "0:01:15"]
[BlackClock "0:00:06"]

1. d4 {[%clk 0:03:00]}  Nf6 {[%clk 0:02:56]} 2. c4 {[%clk 0:02:59]}  c5 {[%clk 0:02:54]} 3. d5 {[%clk 0:02:59]}  b5 {[%clk 0:02:53]} 4. Nd2 {[%clk 0:03:00]}  bxc4 {[%clk 0:02:47]} 5. e4 {[%clk 0:03:00]}  d6 {[%clk 0:02:47]} 6. Bxc4 {[%clk 0:03:00]}  g6 {[%clk 0:02:47]} 7. b3 {[%clk 0:03:00]}  Bg7 {[%clk 0:02:46]} 8. Bb2 {[%clk 0:03:01]}  O-O {[%clk 0:02:44]} 9. Ngf3 {[%clk 0:03:01]}  a5 {[%clk 0:02:41]} 10. O-O {[%clk 0:03:00]}  Nbd7 {[%clk 0:02:30]} 11. Qc2 {[%clk 0:02:57]}  Ba6 {[%clk 0:02:22]} 12. h3 {[%clk 0:02:54]}  Nb6 {[%clk 0:02:16]} 13. Rfe1 {[%clk 0:02:50]}  Bxc4 {[%clk 0:02:11]} 14. bxc4 {[%clk 0:02:49]}  Rb8 {[%clk 0:02:01]} 15. e5 {[%clk 0:02:48]}  Ne8 {[%clk 0:01:55]} 16. Rab1 {[%clk 0:02:43]}  dxe5 {[%clk 0:01:37]} 17. Bxe5 {[%clk 0:02:42]}  Nd6 {[%clk 0:01:33]} 18. Bxg7 {[%clk 0:02:40]}  Kxg7 {[%clk 0:01:29]} 19. Ne5 {[%clk 0:02:40]}  Rb7 {[%clk 0:01:20]} 20. Nc6 {[%clk 0:02:34]}  Qe8 {[%clk 0:00:56]} 21. Nxa5 {[%clk 0:02:33]}  Rb8 {[%clk 0:00:48]} 22. Nc6 {[%clk 0:02:33]}  Rb7 {[%clk 0:00:48]} 23. a4 {[%clk 0:02:32]}  Kg8 {[%clk 0:00:28]} 24. a5 {[%clk 0:02:32]}  Nbc8 {[%clk 0:00:28]} 25. Rxb7 {[%clk 0:02:32]}  Nxb7 {[%clk 0:00:28]} 26. Ne4 {[%clk 0:02:33]}  Qd7 {[%clk 0:00:18]} 27. a6 {[%clk 0:02:34]}  Nbd6 {[%clk 0:00:18]} 28. Nxc5 {[%clk 0:02:34]}  Qc7 {[%clk 0:00:17]} 29. Ra1 {[%clk 0:02:28]}  Na7 {[%clk 0:00:17]} 30. Qa4 {[%clk 0:02:10]}  Rc8 {[%clk 0:00:14]} 31. Nxa7 {[%clk 0:02:10]}  Qxa7 {[%clk 0:00:15]} 32. Nb7 {[%clk 0:01:50]}  Rxc4 {[%clk 0:00:16]} 33. Qd7 {[%clk 0:01:46]}  Rc2 {[%clk 0:00:15]} 34. Rf1 {[%clk 0:01:31]}  Rxf2 {[%clk 0:00:12]} 35. Rxf2 {[%clk 0:01:30]}  Ne4 {[%clk 0:00:13]} 36. Qc8+ {[%clk 0:01:16]}  Kg7 {[%clk 0:00:13]} 37. Qc2 {[%clk 0:01:16]}  Nxf2 {[%clk 0:00:12]} 38. Qxf2 {[%clk 0:01:17]}  Qxa6 {[%clk 0:00:13]} 39. Qd4+ {[%clk 0:01:15]}  Kg8 {[%clk 0:00:11]} 40. Nc5 {[%clk 0:01:15]}  Qd6 {[%clk 0:00:10]} 41. Ne4 {[%clk 0:01:14]}  Qf4 {[%clk 0:00:09]} 42. d6 {[%clk 0:01:15]}  exd6 {[%clk 0:00:06]} 43. Nf6+ {[%clk 0:01:15]} 1-0

[Event "December 19 Early 2023"]
[Site "https://www.chess.com"]
[Date "2023.12.19"]
[Round "3"]
[White "Rendle, Thomas E"]
[Black "Kukhmazov, Arsen"]
[Result "0-1"]
[Board "58"]
[TimeControl "180+1"]
[WhiteFideId "408760"]
[BlackFideId "24108260"]
[WhiteElo "2424"]
[BlackElo "2397"]
[WhiteTeam "ENG"]
[BlackTeam "FID"]
[WhiteClock "0:00:00"]
[BlackClock "0:00:04"]

1. d4 {[%clk 0:03:00]}  d5 {[%clk 0:02:59]} 2. Nf3 {[%clk 0:02:59]}  Nf6 {[%clk 0:02:59]} 3. c4 {[%clk 0:02:59]}  e6 {[%clk 0:02:59]} 4. e3 {[%clk 0:02:54]}  b6 {[%clk 0:02:59]} 5. Bd3 {[%clk 0:02:53]}  Bb7 {[%clk 0:02:58]} 6. O-O {[%clk 0:02:52]}  Bd6 {[%clk 0:02:59]} 7. b3 {[%clk 0:02:48]}  O-O {[%clk 0:02:58]} 8. Bb2 {[%clk 0:02:48]}  Nbd7 {[%clk 0:02:59]} 9. Nbd2 {[%clk 0:02:48]}  Qe7 {[%clk 0:02:59]} 10. a3 {[%clk 0:02:45]}  Ne4 {[%clk 0:02:31]} 11. Ne5 {[%clk 0:02:37]}  Nxd2 {[%clk 0:02:20]} 12. Qxd2 {[%clk 0:02:32]}  Bxe5 {[%clk 0:02:20]} 13. dxe5 {[%clk 0:02:32]}  Nc5 {[%clk 0:02:21]} 14. Bc2 {[%clk 0:01:48]}  dxc4 {[%clk 0:02:21]} 15. bxc4 {[%clk 0:01:49]}  Rfd8 {[%clk 0:02:20]} 16. Qe2 {[%clk 0:01:46]}  Be4 {[%clk 0:01:58]} 17. Bxe4 {[%clk 0:01:30]}  Nxe4 {[%clk 0:01:59]} 18. Rfd1 {[%clk 0:01:30]}  h6 {[%clk 0:01:52]} 19. Rd4 {[%clk 0:01:26]}  Nc5 {[%clk 0:01:46]} 20. Rad1 {[%clk 0:01:25]}  Nb3 {[%clk 0:01:44]} 21. R4d3 {[%clk 0:01:21]}  Rxd3 {[%clk 0:01:42]} 22. Qxd3 {[%clk 0:01:21]}  Nc5 {[%clk 0:01:42]} 23. Qd4 {[%clk 0:01:20]}  a5 {[%clk 0:01:38]} 24. h3 {[%clk 0:01:17]}  Qe8 {[%clk 0:01:20]} 25. Qh4 {[%clk 0:01:10]}  Kh7 {[%clk 0:01:08]} 26. Bd4 {[%clk 0:01:05]}  Qa4 {[%clk 0:01:08]} 27. Rc1 {[%clk 0:00:54]}  Qxa3 {[%clk 0:01:02]} 28. Rf1 {[%clk 0:00:48]}  Re8 {[%clk 0:00:51]} 29. f4 {[%clk 0:00:45]}  Qd3 {[%clk 0:00:49]} 30. Qg4 {[%clk 0:00:21]}  g6 {[%clk 0:00:37]} 31. Bxc5 {[%clk 0:00:21]}  bxc5 {[%clk 0:00:38]} 32. Rd1 {[%clk 0:00:21]}  Qxe3+ {[%clk 0:00:38]} 33. Kh1 {[%clk 0:00:22]}  Rb8 {[%clk 0:00:28]} 34. Qh4 {[%clk 0:00:20]}  Qe4 {[%clk 0:00:20]} 35. Qe7 {[%clk 0:00:18]}  Qxf4 {[%clk 0:00:17]} 36. Qxc7 {[%clk 0:00:16]}  Rb2 {[%clk 0:00:14]} 37. Qxc5 {[%clk 0:00:16]}  a4 {[%clk 0:00:13]} 38. Qa3 {[%clk 0:00:13]}  Qf2 {[%clk 0:00:12]} 39. Rg1 {[%clk 0:00:12]}  Ra2 {[%clk 0:00:13]} 40. Qc3 {[%clk 0:00:12]}  Rc2 {[%clk 0:00:12]} 41. Qd3 {[%clk 0:00:10]}  Qe2 {[%clk 0:00:09]} 42. Qd7 {[%clk 0:00:07]}  Kg7 {[%clk 0:00:10]} 43. Qxa4 {[%clk 0:00:05]}  Rxc4 {[%clk 0:00:10]} 44. Qb5 {[%clk 0:00:05]}  Re4 {[%clk 0:00:10]} 45. Qd7 {[%clk 0:00:04]}  Rxe5 {[%clk 0:00:11]} 46. Qd4 {[%clk 0:00:05]}  Qe3 {[%clk 0:00:11]} 47. Qb2 {[%clk 0:00:04]}  Qe2 {[%clk 0:00:11]} 48. Qd4 {[%clk 0:00:05]}  Qe4 {[%clk 0:00:10]} 49. Qb2 {[%clk 0:00:05]}  Kh7 {[%clk 0:00:10]} 50. Rf1 {[%clk 0:00:04]}  Rf5 {[%clk 0:00:10]} 51. Rd1 {[%clk 0:00:03]}  Qe5 {[%clk 0:00:10]} 52. Qb7 {[%clk 0:00:03]}  Qe2 {[%clk 0:00:06]} 53. Rg1 {[%clk 0:00:03]}  Kg7 {[%clk 0:00:06]} 54. Qb4 {[%clk 0:00:03]}  Rf1 {[%clk 0:00:04]} 55. Qd4+ {[%clk 0:00:00]}  e5 {[%clk 0:00:04]} 0-1

[Event "December 19 Early 2023"]
[Site "https://www.chess.com"]
[Date "2023.12.19"]
[Round "3"]
[White "Ovetchkin, Roman"]
[Black "Abasov, Nijat"]
[Result "1-0"]
[Board "59"]
[TimeControl "180+1"]
[WhiteFideId "4119991"]
[BlackFideId "13402960"]
[WhiteElo "2381"]
[BlackElo "2561"]
[WhiteTeam "RUS"]
[BlackTeam "AZE"]
[WhiteClock "0:00:04"]
[BlackClock "0:00:00"]

1. d4 {[%clk 0:03:00]}  Nf6 {[%clk 0:03:00]} 2. c4 {[%clk 0:03:00]}  e6 {[%clk 0:03:00]} 3. g3 {[%clk 0:03:00]}  d5 {[%clk 0:02:58]} 4. Bg2 {[%clk 0:02:59]}  dxc4 {[%clk 0:02:57]} 5. Nf3 {[%clk 0:02:59]}  Bb4+ {[%clk 0:02:57]} 6. Bd2 {[%clk 0:02:59]}  a5 {[%clk 0:02:57]} 7. O-O {[%clk 0:02:58]}  O-O {[%clk 0:02:54]} 8. Bg5 {[%clk 0:02:50]}  b5 {[%clk 0:02:53]} 9. a4 {[%clk 0:02:45]}  c6 {[%clk 0:02:45]} 10. Ne5 {[%clk 0:02:36]}  Ra6 {[%clk 0:02:42]} 11. Nc3 {[%clk 0:02:35]}  Rb6 {[%clk 0:02:23]} 12. e4 {[%clk 0:02:07]}  h6 {[%clk 0:02:02]} 13. Be3 {[%clk 0:02:05]}  Rb7 {[%clk 0:01:48]} 14. axb5 {[%clk 0:01:49]}  cxb5 {[%clk 0:01:49]} 15. d5 {[%clk 0:01:48]}  exd5 {[%clk 0:01:43]} 16. exd5 {[%clk 0:01:43]}  Bf5 {[%clk 0:00:48]} 17. d6 {[%clk 0:01:18]}  Bxc3 {[%clk 0:00:46]} 18. bxc3 {[%clk 0:01:17]}  Be4 {[%clk 0:00:41]} 19. Qd4 {[%clk 0:01:09]}  Bxg2 {[%clk 0:00:40]} 20. Kxg2 {[%clk 0:01:10]}  Re8 {[%clk 0:00:37]} 21. Rfb1 {[%clk 0:01:05]}  Nbd7 {[%clk 0:00:36]} 22. Nc6 {[%clk 0:00:59]}  Qa8 {[%clk 0:00:18]} 23. Rxa5 {[%clk 0:00:48]}  Ra7 {[%clk 0:00:19]} 24. Rxa7 {[%clk 0:00:48]}  Qxc6+ {[%clk 0:00:19]} 25. Kg1 {[%clk 0:00:48]}  Ne5 {[%clk 0:00:20]} 26. Qf4 {[%clk 0:00:22]}  Nf3+ {[%clk 0:00:17]} 27. Kf1 {[%clk 0:00:22]}  Nxh2+ {[%clk 0:00:17]} 28. Ke2 {[%clk 0:00:23]}  Qd5 {[%clk 0:00:12]} 29. Rd1 {[%clk 0:00:17]}  Qh5+ {[%clk 0:00:12]} 30. Kd2 {[%clk 0:00:17]}  Re4 {[%clk 0:00:03]} 31. d7 {[%clk 0:00:14]}  Nxd7 {[%clk 0:00:03]} 32. Qc7 {[%clk 0:00:13]}  Nf6 {[%clk 0:00:03]} 33. Kc1 {[%clk 0:00:13]}  Nf3 {[%clk 0:00:03]} 34. Rd8+ {[%clk 0:00:12]}  Kh7 {[%clk 0:00:03]} 35. Qxf7 {[%clk 0:00:12]}  Qxf7 {[%clk 0:00:03]} 36. Rxf7 {[%clk 0:00:12]}  Kg6 {[%clk 0:00:03]} 37. Rb7 {[%clk 0:00:12]}  Ng4 {[%clk 0:00:04]} 38. Rd6+ {[%clk 0:00:10]}  Kh7 {[%clk 0:00:03]} 39. Rdd7 {[%clk 0:00:11]}  Kg6 {[%clk 0:00:02]} 40. Rxg7+ {[%clk 0:00:10]}  Kf6 {[%clk 0:00:02]} 41. Rbf7+ {[%clk 0:00:10]}  Ke6 {[%clk 0:00:03]} 42. Rf4 {[%clk 0:00:10]}  Rxf4 {[%clk 0:00:01]} 43. Bxf4 {[%clk 0:00:09]}  Nxf2 {[%clk 0:00:02]} 44. Bxh6 {[%clk 0:00:09]}  Ne4 {[%clk 0:00:01]} 45. Kb2 {[%clk 0:00:07]}  Ne1 {[%clk 0:00:01]} 46. Rg6+ {[%clk 0:00:05]}  Kf5 {[%clk 0:00:01]} 47. Rb6 {[%clk 0:00:04]}  Nd3+ {[%clk 0:00:02]} 48. Kc2 {[%clk 0:00:04]}  Ne1+ {[%clk 0:00:00]} 49. Kd1 {[%clk 0:00:04]} 1-0

[Event "December 19 Early 2023"]
[Site "https://www.chess.com"]
[Date "2023.12.19"]
[Round "3"]
[White "Kovalev, Vladislav"]
[Black "Mendoza, Rodrigo"]
[Result "1/2-1/2"]
[Board "60"]
[TimeControl "180+1"]
[WhiteFideId "13504398"]
[BlackFideId "3301931"]
[WhiteElo "2539"]
[BlackElo "2111"]
[WhiteTeam "FID"]
[BlackTeam "BOL"]
[WhiteClock "0:00:03"]
[BlackClock "0:00:02"]

1. e4 {[%clk 0:03:00]}  c6 {[%clk 0:03:00]} 2. Nf3 {[%clk 0:03:00]}  d5 {[%clk 0:03:01]} 3. d3 {[%clk 0:03:01]}  Bg4 {[%clk 0:02:57]} 4. Nbd2 {[%clk 0:03:00]}  e6 {[%clk 0:02:57]} 5. h3 {[%clk 0:03:00]}  Bxf3 {[%clk 0:02:57]} 6. Nxf3 {[%clk 0:02:57]}  Nf6 {[%clk 0:02:57]} 7. e5 {[%clk 0:02:57]}  Nfd7 {[%clk 0:02:56]} 8. d4 {[%clk 0:02:47]}  c5 {[%clk 0:02:55]} 9. c4 {[%clk 0:02:48]}  cxd4 {[%clk 0:02:46]} 10. cxd5 {[%clk 0:02:47]}  Qa5+ {[%clk 0:02:45]} 11. Bd2 {[%clk 0:02:38]}  Qxd5 {[%clk 0:02:45]} 12. Qb3 {[%clk 0:01:38]}  Qe4+ {[%clk 0:02:25]} 13. Kd1 {[%clk 0:01:38]}  Nc5 {[%clk 0:02:12]} 14. Bb5+ {[%clk 0:01:27]}  Nc6 {[%clk 0:02:12]} 15. Qc4 {[%clk 0:01:26]}  a6 {[%clk 0:01:46]} 16. Bxc6+ {[%clk 0:01:26]}  Qxc6 {[%clk 0:01:46]} 17. Rc1 {[%clk 0:01:20]}  Rd8 {[%clk 0:01:37]} 18. Re1 {[%clk 0:01:04]}  d3 {[%clk 0:01:27]} 19. Re3 {[%clk 0:00:48]}  Be7 {[%clk 0:01:17]} 20. b4 {[%clk 0:00:32]}  Qa4+ {[%clk 0:01:10]} 21. Ke1 {[%clk 0:00:33]}  Nd7 {[%clk 0:01:02]} 22. Rxd3 {[%clk 0:00:30]}  O-O {[%clk 0:01:02]} 23. Qb3 {[%clk 0:00:28]}  Qxb3 {[%clk 0:00:51]} 24. axb3 {[%clk 0:00:25]}  Nb6 {[%clk 0:00:48]} 25. Rxd8 {[%clk 0:00:25]}  Rxd8 {[%clk 0:00:43]} 26. Rc7 {[%clk 0:00:25]}  Rd7 {[%clk 0:00:44]} 27. Rc2 {[%clk 0:00:13]}  h6 {[%clk 0:00:40]} 28. Ke2 {[%clk 0:00:12]}  Nd5 {[%clk 0:00:40]} 29. b5 {[%clk 0:00:11]}  axb5 {[%clk 0:00:38]} 30. Nd4 {[%clk 0:00:10]}  b4 {[%clk 0:00:34]} 31. Nb5 {[%clk 0:00:08]}  f6 {[%clk 0:00:28]} 32. exf6 {[%clk 0:00:07]}  Bxf6 {[%clk 0:00:25]} 33. Rc4 {[%clk 0:00:07]}  Be7 {[%clk 0:00:19]} 34. Nd4 {[%clk 0:00:04]}  Kf7 {[%clk 0:00:18]} 35. Nf3 {[%clk 0:00:04]}  Bd6 {[%clk 0:00:17]} 36. Rc8 {[%clk 0:00:04]}  Rc7 {[%clk 0:00:16]} 37. Rxc7+ {[%clk 0:00:03]}  Bxc7 {[%clk 0:00:15]} 38. Kd3 {[%clk 0:00:04]}  Bb6 {[%clk 0:00:15]} 39. Be1 {[%clk 0:00:03]}  Bc5 {[%clk 0:00:14]} 40. Ke4 {[%clk 0:00:03]}  b6 {[%clk 0:00:13]} 41. Ne5+ {[%clk 0:00:03]}  Ke7 {[%clk 0:00:13]} 42. f3 {[%clk 0:00:03]}  Nf6+ {[%clk 0:00:12]} 43. Kd3 {[%clk 0:00:03]}  Nd5 {[%clk 0:00:13]} 44. Bd2 {[%clk 0:00:03]}  g5 {[%clk 0:00:13]} 45. Kc4 {[%clk 0:00:03]}  Be3 {[%clk 0:00:10]} 46. Be1 {[%clk 0:00:02]}  Kf6 {[%clk 0:00:09]} 47. Ng4+ {[%clk 0:00:01]}  Kg6 {[%clk 0:00:08]} 48. Bxb4 {[%clk 0:00:02]}  Bf4 {[%clk 0:00:04]} 49. Be1 {[%clk 0:00:02]}  h5 {[%clk 0:00:05]} 50. Nf2 {[%clk 0:00:01]}  Ne3+ {[%clk 0:00:05]} 51. Kd3 {[%clk 0:00:02]}  Nxg2 {[%clk 0:00:06]} 52. Bc3 {[%clk 0:00:02]}  Nh4 {[%clk 0:00:07]} 53. Ke2 {[%clk 0:00:02]}  Nf5 {[%clk 0:00:07]} 54. Nd3 {[%clk 0:00:03]}  Ng3+ {[%clk 0:00:07]} 55. Kf2 {[%clk 0:00:02]}  Kf5 {[%clk 0:00:07]} 56. Bd4 {[%clk 0:00:03]}  h4 {[%clk 0:00:07]} 57. Bxb6 {[%clk 0:00:03]}  e5 {[%clk 0:00:06]} 58. Nxf4 {[%clk 0:00:02]}  gxf4 {[%clk 0:00:04]} 59. Bd8 {[%clk 0:00:02]}  e4 {[%clk 0:00:03]} 60. Bxh4 {[%clk 0:00:03]}  e3+ {[%clk 0:00:04]} 61. Ke1 {[%clk 0:00:03]}  Nh5 {[%clk 0:00:04]} 62. b4 {[%clk 0:00:04]}  Ke5 {[%clk 0:00:04]} 63. b5 {[%clk 0:00:04]}  Kd5 {[%clk 0:00:05]} 64. Be7 {[%clk 0:00:03]}  Ng7 {[%clk 0:00:03]} 65. h4 {[%clk 0:00:02]}  Nf5 {[%clk 0:00:03]} 66. Bg5 {[%clk 0:00:03]}  Kc5 {[%clk 0:00:04]} 67. Bxf4 {[%clk 0:00:03]}  Nxh4 {[%clk 0:00:02]} 68. Bxe3+ {[%clk 0:00:02]}  Kxb5 {[%clk 0:00:02]} 69. f4 {[%clk 0:00:03]}  Kc4 {[%clk 0:00:02]} 70. Ke2 {[%clk 0:00:03]}  Kd5 {[%clk 0:00:02]} 71. Kf2 {[%clk 0:00:03]}  Ke6 {[%clk 0:00:02]} 72. Kg3 {[%clk 0:00:03]}  Ng6 {[%clk 0:00:02]} 73. Kg4 {[%clk 0:00:03]}  Nxf4 {[%clk 0:00:02]} 1/2-1/2

[Event "December 19 Early 2023"]
[Site "https://www.chess.com"]
[Date "2023.12.19"]
[Round "3"]
[White "Alexandre, Anne Shopie Elizabeth"]
[Black "Ezat, Mohamed"]
[Result "1-0"]
[Board "62"]
[TimeControl "180+1"]
[WhiteFideId "11902418"]
[BlackFideId "10600906"]
[WhiteElo "2826"]
[BlackElo "2367"]
[WhiteTeam "HAI"]
[BlackTeam "EGY"]
[WhiteClock "0:00:05"]
[BlackClock "0:00:00"]

1. e4 {[%clk 0:03:00]}  e5 {[%clk 0:02:59]} 2. Nf3 {[%clk 0:03:01]}  Nc6 {[%clk 0:02:59]} 3. Bc4 {[%clk 0:03:01]}  Nf6 {[%clk 0:02:59]} 4. Ng5 {[%clk 0:03:00]}  d5 {[%clk 0:02:59]} 5. exd5 {[%clk 0:03:00]}  Na5 {[%clk 0:02:59]} 6. Bb5+ {[%clk 0:03:00]}  c6 {[%clk 0:02:59]} 7. dxc6 {[%clk 0:03:01]}  bxc6 {[%clk 0:03:00]} 8. Bd3 {[%clk 0:03:02]}  Be7 {[%clk 0:02:48]} 9. O-O {[%clk 0:02:52]}  O-O {[%clk 0:02:46]} 10. Nc3 {[%clk 0:02:51]}  h6 {[%clk 0:02:41]} 11. Nf3 {[%clk 0:02:48]}  Bd6 {[%clk 0:02:38]} 12. Be2 {[%clk 0:02:24]}  e4 {[%clk 0:02:35]} 13. Ne1 {[%clk 0:02:24]}  Qc7 {[%clk 0:02:31]} 14. g3 {[%clk 0:02:24]}  Bh3 {[%clk 0:02:30]} 15. Ng2 {[%clk 0:02:24]}  Rad8 {[%clk 0:02:28]} 16. d4 {[%clk 0:02:19]}  exd3 {[%clk 0:02:25]} 17. cxd3 {[%clk 0:02:19]}  Rfe8 {[%clk 0:02:19]} 18. Re1 {[%clk 0:02:18]}  Bc5 {[%clk 0:02:16]} 19. Be3 {[%clk 0:02:09]}  Nb7 {[%clk 0:02:12]} 20. d4 {[%clk 0:02:04]}  Bb4 {[%clk 0:02:11]} 21. Nf4 {[%clk 0:02:01]}  Bf5 {[%clk 0:02:10]} 22. a3 {[%clk 0:02:00]}  Bxc3 {[%clk 0:02:08]} 23. bxc3 {[%clk 0:02:01]}  Nd6 {[%clk 0:02:06]} 24. Bd3 {[%clk 0:01:52]}  Nd5 {[%clk 0:02:02]} 25. Nxd5 {[%clk 0:01:45]}  cxd5 {[%clk 0:02:02]} 26. Bxf5 {[%clk 0:01:42]}  Nxf5 {[%clk 0:02:02]} 27. Qd3 {[%clk 0:01:43]}  Qd7 {[%clk 0:01:46]} 28. Rad1 {[%clk 0:01:33]}  Re7 {[%clk 0:01:37]} 29. c4 {[%clk 0:01:32]}  dxc4 {[%clk 0:01:36]} 30. Qxc4 {[%clk 0:01:32]}  Rde8 {[%clk 0:01:34]} 31. Qb3 {[%clk 0:01:17]}  Re4 {[%clk 0:01:10]} 32. Qd3 {[%clk 0:01:08]}  h5 {[%clk 0:00:42]} 33. d5 {[%clk 0:00:58]}  h4 {[%clk 0:00:40]} 34. Kg2 {[%clk 0:00:52]}  h3+ {[%clk 0:00:40]} 35. Kf1 {[%clk 0:00:47]}  Qb7 {[%clk 0:00:35]} 36. Bd2 {[%clk 0:00:42]}  Rxe1+ {[%clk 0:00:28]} 37. Rxe1 {[%clk 0:00:42]}  Rxe1+ {[%clk 0:00:27]} 38. Bxe1 {[%clk 0:00:42]}  Ne7 {[%clk 0:00:27]} 39. d6 {[%clk 0:00:38]}  Qg2+ {[%clk 0:00:25]} 40. Ke2 {[%clk 0:00:38]}  Nc6 {[%clk 0:00:21]} 41. d7 {[%clk 0:00:37]}  Qxh2 {[%clk 0:00:18]} 42. Qd5 {[%clk 0:00:28]}  Qg2 {[%clk 0:00:14]} 43. Qxc6 {[%clk 0:00:22]}  Qxc6 {[%clk 0:00:13]} 44. d8=Q+ {[%clk 0:00:22]}  Kh7 {[%clk 0:00:14]} 45. Qh4+ {[%clk 0:00:23]}  Kg8 {[%clk 0:00:12]} 46. Qxh3 {[%clk 0:00:19]}  Qc4+ {[%clk 0:00:11]} 47. Ke3 {[%clk 0:00:19]}  Qc5+ {[%clk 0:00:09]} 48. Kf3 {[%clk 0:00:18]}  Qd5+ {[%clk 0:00:08]} 49. Ke2 {[%clk 0:00:18]}  Qc4+ {[%clk 0:00:08]} 50. Kd2 {[%clk 0:00:18]}  Qd4+ {[%clk 0:00:07]} 51. Kc1 {[%clk 0:00:18]}  Qa1+ {[%clk 0:00:06]} 52. Kd2 {[%clk 0:00:16]}  Qd4+ {[%clk 0:00:06]} 53. Kc2 {[%clk 0:00:14]}  Qe4+ {[%clk 0:00:06]} 54. Kd1 {[%clk 0:00:15]}  Qb1+ {[%clk 0:00:06]} 55. Ke2 {[%clk 0:00:14]}  Qb5+ {[%clk 0:00:07]} 56. Kf3 {[%clk 0:00:12]}  Qd5+ {[%clk 0:00:07]} 57. Kf4 {[%clk 0:00:11]}  Qd4+ {[%clk 0:00:05]} 58. Kf3 {[%clk 0:00:08]}  Qd1+ {[%clk 0:00:06]} 59. Kg2 {[%clk 0:00:07]}  Qxe1 {[%clk 0:00:06]} 60. Qc8+ {[%clk 0:00:07]}  Kh7 {[%clk 0:00:07]} 61. Qc2+ {[%clk 0:00:07]}  g6 {[%clk 0:00:06]} 62. Qc7 {[%clk 0:00:05]}  Qe4+ {[%clk 0:00:05]} 63. Kh2 {[%clk 0:00:05]}  Qf5 {[%clk 0:00:05]} 64. f4 {[%clk 0:00:05]}  Qd3 {[%clk 0:00:05]} 65. Qxf7+ {[%clk 0:00:04]}  Kh6 {[%clk 0:00:05]} 66. Qf8+ {[%clk 0:00:04]}  Kh5 {[%clk 0:00:05]} 67. Qh8+ {[%clk 0:00:03]}  Kg4 {[%clk 0:00:05]} 68. Qc8+ {[%clk 0:00:03]}  Kf3 {[%clk 0:00:05]} 69. Qb7+ {[%clk 0:00:04]}  Kg4 {[%clk 0:00:03]} 70. Qg2 {[%clk 0:00:01]}  Qe3 {[%clk 0:00:01]} 71. Qh3+ {[%clk 0:00:02]}  Kf3 {[%clk 0:00:02]} 72. Qg2+ {[%clk 0:00:02]}  Kg4 {[%clk 0:00:02]} 73. a4 {[%clk 0:00:02]}  Qe6 {[%clk 0:00:01]} 74. Qh3+ {[%clk 0:00:02]}  Kf3 {[%clk 0:00:02]} 75. Qxe6 {[%clk 0:00:03]}  Kf2 {[%clk 0:00:03]} 76. Qxg6 {[%clk 0:00:03]}  Kf1 {[%clk 0:00:02]} 77. f5 {[%clk 0:00:04]}  Kf2 {[%clk 0:00:00]} 78. f6 {[%clk 0:00:05]} 1-0